bitfinex/quotes_SOLUSD_20250601
["timestamp","ask_amount","ask_price","bid_price","bid_amount"]
[1748820197543,14.13162017,157.34,157.3,20.48889925]
[1748820197847,14.13162017,157.34,157.3,6.35727908]
[1748820200133,14.13162017,157.34,157.29,14.13162017]
[1748820200527,14.13162017,157.33,157.28,36.38447932]
[1748820200933,14.13162017,157.32,157.28,6.35808748]
[1748820202816,14.13162017,157.33,157.28,20.48970765]
[1748820203531,14.13162017,157.34,157.29,14.13162017]
[1748820203730,14.13162017,157.33,157.28,20.48970765]
[1748820203934,14.13162017,157.32,157.28,20.48970765]
[1748820204132,14.13162017,157.33,157.28,6.35808748]
[1748820204342,14.13162017,157.33,157.28,20.48970765]
[1748820205048,14.13162017,157.33,157.28,36.38492636]
[1748820205550,14.13162017,157.34,157.28,36.38492636]
[1748820205747,148.9,157.33,157.28,36.38492636]
[1748820205943,148.9,157.33,157.3,6.35727908]
[1748820207156,148.9,157.33,157.31,14.13162017]
[1748820208076,148.9,157.33,157.3,36.38209696]
[1748820208364,148.9,157.33,157.3,20.48889925]
[1748820208856,148.9,157.33,157.3,6.35727908]
[1748820208857,163.03162017,157.33,157.3,6.35727908]
[1748820210949,148.9,157.33,157.3,6.35727908]
[1748820211141,148.9,157.33,157.3,20.48889925]
[1748820211447,148.9,157.33,157.32,14.13162017]
[1748820211842,148.9,157.33,157.31,14.13162017]
[1748820212452,148.9,157.33,157.32,20.48809105]
[1748820212836,148.9,157.38,157.32,36.37926826]
[1748820213142,14.13162017,157.37,157.32,20.48809105]
[1748820213338,148.9,157.38,157.34,14.13162017]
[1748820213561,148.9,157.38,157.36,14.13162017]
[1748820214246,148.9,157.38,157.35,14.13162017]
[1748820214560,148.9,157.38,157.36,6.3548551]
[1748820218240,148.9,157.38,157.36,20.48647527]
[1748820220341,148.9,157.38,157.35,20.48687914]
[1748820220958,148.9,157.38,157.35,6.35525897]
[1748820221138,163.03162017,157.38,157.35,6.35525897]
[1748820221354,163.03162017,157.38,157.34,16.43562572]
[1748820221549,14.13162017,157.37,157.34,16.43562572]
[1748820221847,163.03162017,157.38,157.34,16.43562572]
[1748820223543,148.9,157.37,157.34,16.43562572]
[1748820224674,163.03162017,157.37,157.34,10.08]
[1748820224873,163.03162017,157.37,157.33,6.35597941]
[1748820225370,148.9,157.37,157.33,20.48759958]
[1748820225542,163.03162017,157.37,157.32,6.35647088]
[1748820225744,148.9,157.36,157.32,20.48809105]
[1748820227448,148.9,157.36,157.32,6.35647088]
[1748820227759,148.9,157.36,157.35,14.13162017]
[1748820227964,148.9,157.36,157.34,14.13162017]
[1748820228752,148.9,157.36,157.34,6.35554037]
[1748820231142,148.9,157.36,157.35,14.13162017]
[1748820231559,148.9,157.36,157.34,20.48716054]
[1748820235177,148.9,157.36,157.35,20.48687914]
[1748820235467,148.9,157.4,157.35,59.38687914]
[1748820235685,148.9,157.4,157.36,14.13162017]
[1748820235880,148.9,157.39,157.36,14.13162017]
[1748820236467,148.9,157.39,157.37,6.35445129]
[1748820238660,163.03162017,157.39,157.36,6.3548551]
[1748820238857,148.9,157.39,157.36,6.3548551]
[1748820239257,148.9,157.39,157.36,20.48647527]
[1748820240174,148.9,157.39,157.36,6.3548551]
[1748820240482,14.13162017,157.37,157.29,36.08]
[1748820240650,14.13162017,157.34,157.3,6.35727908]
[1748820240975,14.13162017,157.33,157.3,6.35727908]
[1748820245673,14.13162017,157.31,157.29,16.4375857]
[1748820245874,14.13162017,157.31,157.29,6.3575857]
[1748820247371,163.03162017,157.32,157.29,6.3575857]
[1748820249377,14.13162017,157.31,157.29,6.3575857]
[1748820249678,14.13162017,157.3,157.26,6.35889609]
[1748820249870,148.9,157.29,157.26,6.35889609]
[1748820250472,148.9,157.29,157.26,20.49051626]
[1748820251681,148.9,157.29,157.26,6.35889609]
[1748820260673,148.9,157.29,157.27,14.13162017]
[1748820261571,148.9,157.29,157.28,14.13162017]
[1748820261977,148.9,157.35,157.28,71.68126903]
[1748820262187,148.9,157.35,157.32,14.13162017]
[1748820262604,148.9,157.35,157.32,20.48804519]
[1748820263104,148.9,157.35,157.32,14.13162017]
[1748820263293,148.9,157.35,157.3,48.98]
[1748820263294,148.9,157.35,157.3,55.33720144]
[1748820263593,163.03162017,157.35,157.3,63.11162017]
[1748820265113,169.38697145,157.35,157.3,63.11162017]
[1748820265408,14.13162017,157.34,157.3,48.98]
[1748820265589,14.13162017,157.34,157.3,10.08]
[1748820266108,14.13162017,157.31,157.26,24.21162017]
[1748820267113,14.13162017,157.31,157.26,30.57041233]
[1748820267413,14.13162017,157.32,157.27,14.13162017]
[1748820268702,155.25613389,157.33,157.28,14.13162017]
[1748820268703,163.03162017,157.33,157.28,14.13162017]
[1748820268885,148.9,157.33,157.29,14.13162017]
[1748820269423,163.03162017,157.33,157.28,14.13162017]
[1748820270790,163.03162017,157.32,157.27,20.48995546]
[1748820271185,163.03162017,157.32,157.27,6.35833529]
[1748820271424,163.03162017,157.32,157.27,20.48995546]
[1748820271736,14.13162017,157.3,157.26,10.08]
[1748820271907,155.25655738,157.32,157.23,20.49172956]
[1748820271908,14.13162017,157.28,157.23,20.49172956]
[1748820272514,148.9,157.29,157.25,14.13162017]
[1748820273006,148.9,157.29,157.25,20.49069808]
[1748820276629,148.9,157.28,157.25,20.49069808]
[1748820280336,148.9,157.28,157.25,6.35907791]
[1748820281230,148.9,157.28,157.25,14.13162017]
[1748820283336,148.9,157.28,157.26,6.35889609]
[1748820285646,148.9,157.28,157.24,14.13162017]
[1748820287144,148.9,157.28,157.27,14.13162017]
[1748820287325,14.13162017,157.32,157.27,14.13162017]
[1748820287527,14.13162017,157.3,157.25,38.92]
[1748820287737,14.13162017,157.29,157.25,45.27901271]
[1748820287982,14.13162017,157.29,157.25,6.35901271]
[1748820288142,14.13162017,157.26,157.23,6.36010939]
[1748820288436,14.13162017,157.25,157.22,6.36037881]
[1748820288745,26.0,157.28,157.23,14.13162017]
[1748820288913,40.13162017,157.28,157.22,20.49199898]
[1748820289728,40.13162017,157.28,157.23,14.13162017]
[1748820289929,189.3377,157.29,157.23,14.13162017]
[1748820289930,203.46932017,157.29,157.23,14.13162017]
[1748820290124,14.13162017,157.28,157.23,14.13162017]
[1748820291837,14.13162017,157.28,157.24,6.3597049]
[1748820293032,203.46932017,157.29,157.24,20.49132507]
[1748820293349,14.13162017,157.28,157.24,6.3597049]
[1748820294439,148.9,157.27,157.24,6.3597049]
[1748820294855,163.03162017,157.27,157.24,6.3597049]
[1748820295053,163.03162017,157.27,157.22,20.49213409]
[1748820296758,148.9,157.27,157.23,14.13162017]
[1748820297369,163.03162017,157.27,157.22,36.39341891]
[1748820297545,14.13162017,157.26,157.22,6.36051392]
[1748820299764,14.13162017,157.26,157.22,20.49213409]
[1748820300064,163.03162017,157.27,157.22,20.49213409]
[1748820300485,148.9,157.26,157.22,20.49213409]
[1748820302084,163.03162017,157.26,157.22,6.36051392]
[1748820302793,14.13162017,157.25,157.22,6.36051392]
[1748820302967,163.03162017,157.24,157.21,6.36082923]
[1748820303354,148.9,157.23,157.19,7.31447818]
[1748820303673,14.13162017,157.2,157.17,6.36248469]
[1748820303870,148.9,157.19,157.17,6.36248469]
[1748820304655,148.9,157.19,157.16,6.36294222]
[1748820308289,163.03162017,157.19,157.14,20.49537223]
[1748820309274,148.9,157.18,157.14,20.49537223]
[1748820311386,148.9,157.17,157.14,20.49537223]
[1748820311567,148.9,157.17,157.14,6.36375206]
[1748820314059,148.9,157.21,157.16,14.13162017]
[1748820314296,148.9,157.21,157.14,61.29313223]
[1748820314297,148.9,157.21,157.18,14.13162017]
[1748820314667,148.9,157.21,157.17,14.13162017]
[1748820315883,148.9,157.21,157.18,6.36213258]
[1748820316382,148.9,157.21,157.18,36.39908421]
[1748820318775,163.03162017,157.21,157.18,6.36213258]
[1748820319192,148.9,157.2,157.18,6.36213258]
[1748820320389,148.9,157.2,157.17,6.36253737]
[1748820320577,148.9,157.2,157.17,20.49415754]
[1748820321684,148.9,157.2,157.18,14.13162017]
[1748820322873,148.9,157.2,157.19,6.36172784]
[1748820323274,148.9,157.25,157.19,36.39766762]
[1748820323481,148.9,157.25,157.22,14.13162017]
[1748820324902,148.9,157.25,157.23,6.36010939]
[1748820325878,148.9,157.25,157.24,14.13162017]
[1748820326078,148.9,157.25,157.23,20.49172956]
[1748820326404,148.9,157.25,157.23,6.36010939]
[1748820328186,148.9,157.25,157.22,6.36051392]
[1748820328992,148.9,157.25,157.22,20.49213409]
[1748820329879,148.9,157.25,157.22,36.39341891]
[1748820330085,148.9,157.25,157.24,6.3597049]
[1748820331699,148.9,157.25,157.24,14.13162017]
[1748820333687,148.9,157.25,157.24,20.49132507]
[1748820335707,148.9,157.25,157.23,14.13162017]
[1748820337909,148.9,157.25,157.24,6.3597049]
[1748820339480,148.9,157.25,157.24,20.49132507]
[1748820344914,148.9,157.25,157.24,6.3597049]
[1748820346613,148.9,157.25,157.2,14.13162017]
[1748820346793,163.03162017,157.25,157.2,14.13162017]
[1748820347519,163.03162017,157.25,157.2,20.49294332]
[1748820348216,148.9,157.25,157.2,20.49294332]
[1748820349211,148.9,157.25,157.21,14.13162017]
[1748820349513,148.9,157.25,157.22,14.13162017]
[1748820349818,148.9,157.25,157.23,14.13162017]
[1748820351091,148.9,157.25,157.22,14.13162017]
[1748820351291,148.9,157.25,157.22,6.36032551]
[1748820351598,148.9,157.25,157.24,14.13162017]
[1748820351995,37.82840223,157.29,157.24,14.13162017]
[1748820352201,37.82840223,157.29,157.27,14.13162017]
[1748820352501,37.82840223,157.29,157.25,14.13162017]
[1748820352705,163.03162017,157.3,157.25,14.13162017]
[1748820352910,148.9,157.3,157.26,14.13162017]
[1748820353318,148.9,157.3,157.27,6.35849176]
[1748820354818,148.9,157.3,157.26,14.13162017]
[1748820354819,148.9,157.3,157.26,20.49039144]
[1748820356309,14.13162017,157.28,157.19,7.32464702]
[1748820356517,14.13162017,157.25,157.2,14.13162017]
[1748820357207,14.13162017,157.26,157.21,14.13162017]
[1748820358812,14.13162017,157.26,157.21,20.49226454]
[1748820360019,14.13162017,157.25,157.2,20.49293622]
[1748820360924,14.13162017,157.25,157.2,6.36131605]
[1748820361817,14.13162017,157.24,157.2,6.36131605]
[1748820362015,163.03162017,157.23,157.19,17.43468252]
[1748820362409,148.9,157.22,157.19,17.43468252]
[1748820363122,148.9,157.22,157.19,31.56630269]
[1748820363305,148.9,157.22,157.2,14.13162017]
[1748820365331,148.9,157.22,157.21,6.36091851]
[1748820365715,148.9,157.21,157.19,11.07304702]
[1748820366406,148.9,157.21,157.19,0.95304702]
[1748820367131,148.9,157.21,157.19,7.31477049]
[1748820367432,148.9,157.21,157.19,0.95304702]
[1748820368532,148.9,157.21,157.2,14.13162017]
[1748820369118,148.9,157.21,157.19,60.36635203]
[1748820369314,148.9,157.21,157.19,7.31473186]
[1748820371728,163.03162017,157.2,157.19,0.95304702]
[1748820371930,14.13162017,157.2,157.19,0.95304702]
[1748820373722,79.27421235,157.2,157.13,10.08]
[1748820374045,14.13162017,157.16,157.11,20.49626787]
[1748820374246,14.13162017,157.16,157.11,14.13162017]
[1748820375137,14.13162017,157.16,157.11,20.49635181]
[1748820376042,14.13162017,157.15,157.11,6.36473164]
[1748820376516,14.13162017,157.16,157.11,20.49635181]
[1748820377021,14.13162017,157.16,157.11,6.36473164]
[1748820377239,14.13162017,157.15,157.11,6.36473164]
[1748820377411,14.13162017,157.14,157.1,6.36531255]
[1748820377744,14.13162017,157.17,157.12,14.13162017]
[1748820378127,14.13162017,157.17,157.1,22.27874348]
[1748820378340,14.13162017,157.17,157.13,14.13162017]
[1748820380214,14.13162017,157.17,157.14,6.36375206]
[1748820381326,148.9,157.21,157.16,14.13162017]
[1748820381528,163.03162017,157.2,157.16,14.13162017]
[1748820381830,163.03162017,157.2,157.15,14.13162017]
[1748820382548,163.03162017,157.2,157.16,6.36294222]
[1748820382917,148.9,157.19,157.17,14.13162017]
[1748820383118,148.9,157.19,157.18,14.13162017]
[1748820384934,148.9,157.19,157.18,20.49375275]
[1748820403491,148.9,157.19,157.18,6.36213258]
[1748820403653,148.9,157.19,157.18,20.49375275]
[1748820406269,148.9,157.19,157.18,6.36213258]
[1748820407375,148.9,157.19,157.18,20.49375275]
[1748820409885,148.9,157.24,157.18,36.39908421]
[1748820410187,148.9,157.23,157.21,14.13162017]
[1748820411968,148.9,157.23,157.18,38.92]
[1748820412284,163.03162017,157.23,157.18,14.13162017]
[1748820414182,163.03162017,157.23,157.17,38.92]
[1748820414183,148.9,157.23,157.2,14.13162017]
[1748820414489,148.9,157.23,157.21,14.13162017]
[1748820415066,148.9,157.23,157.22,6.36051392]
[1748820415280,148.9,157.23,157.22,20.49213409]
[1748820417179,148.9,157.23,157.19,15.90401107]
[1748820417375,148.9,157.23,157.2,14.13162017]
[1748820418166,148.9,157.23,157.2,20.49294332]
[1748820422280,148.9,157.23,157.2,6.36132315]
[1748820422469,148.9,157.22,157.19,6.36163943]
[1748820424101,148.9,157.22,157.19,20.4932596]
[1748820424270,148.9,157.22,157.2,14.13162017]
[1748820425289,148.9,157.22,157.19,20.4932596]
[1748820427393,148.9,157.22,157.2,14.13162017]
[1748820428497,148.9,157.26,157.21,14.13162017]
[1748820428793,148.9,157.26,157.22,14.13162017]
[1748820428967,163.03162017,157.26,157.21,14.13162017]
[1748820429989,163.03162017,157.26,157.22,6.36051392]
[1748820431175,163.03162017,157.26,157.21,14.13162017]
[1748820431176,14.13162017,157.24,157.21,6.36088802]
[1748820431473,14.13162017,157.25,157.21,6.36088802]
[1748820433505,148.9,157.24,157.21,6.36088802]
[1748820434277,163.03162017,157.24,157.2,6.36125155]
[1748820436296,148.9,157.24,157.2,20.49287172]
[1748820439207,148.9,157.24,157.21,14.13162017]
[1748820439512,148.9,157.24,157.22,14.13162017]
[1748820440787,148.9,157.24,157.21,14.13162017]
[1748820441313,148.9,157.24,157.22,6.36051392]
[1748820441510,148.9,157.24,157.21,6.36078522]
[1748820441812,163.03162017,157.24,157.21,6.36078522]
[1748820442304,163.03162017,157.24,157.19,6.36172784]
[1748820442502,163.03162017,157.24,157.19,20.49334801]
[1748820443287,14.13162017,157.23,157.19,6.36172784]
[1748820445196,14.13162017,157.22,157.19,6.36172784]
[1748820445403,148.9,157.21,157.18,6.36204648]
[1748820446094,163.03162017,157.21,157.18,6.36204648]
[1748820447814,163.03162017,157.21,157.17,16.44240627]
[1748820447990,163.03162017,157.21,157.17,6.36240627]
[1748820448198,14.13162017,157.2,157.17,6.36240627]
[1748820449290,163.03162017,157.21,157.16,14.13162017]
[1748820449792,148.9,157.21,157.17,14.13162017]
[1748820450120,148.9,157.21,157.18,14.13162017]
[1748820450316,148.9,157.21,157.19,14.13162017]
[1748820450495,148.9,157.21,157.2,14.13162017]
[1748820451522,103.85538215,157.27,157.2,20.49294332]
[1748820451523,163.03162017,157.26,157.2,20.49294332]
[1748820451692,148.9,157.26,157.23,14.13162017]
[1748820453217,148.9,157.26,157.24,6.3597049]
[1748820466639,148.9,157.26,157.22,14.13162017]
[1748820467731,148.9,157.26,157.21,20.49253868]
[1748820467933,163.03162017,157.26,157.21,20.49253868]
[1748820468629,14.13162017,157.25,157.21,6.36091851]
[1748820468930,148.9,157.24,157.21,6.36091851]
[1748820469139,148.9,157.24,157.21,20.49253868]
[1748820472514,148.9,157.24,157.21,6.36091851]
[1748820472924,163.03162017,157.24,157.21,6.36091851]
[1748820473110,14.13162017,157.23,157.2,6.3612556]
[1748820473313,163.03162017,157.23,157.2,6.3612556]
[1748820473720,66.4226,157.27,157.18,10.08]
[1748820473721,14.13162017,157.21,157.18,10.08]
[1748820473930,14.13162017,157.21,157.18,16.44191431]
[1748820474135,14.13162017,157.21,157.18,6.36191431]
[1748820474338,14.13162017,157.21,157.17,6.36253737]
[1748820477835,148.9,157.2,157.17,6.36253737]
[1748820478635,148.9,157.2,157.17,14.13162017]
[1748820479838,148.9,157.2,157.18,6.36213258]
[1748820480340,148.9,157.2,157.18,20.49375275]
[1748820480555,148.9,157.2,157.19,14.13162017]
[1748820481144,148.9,157.2,157.19,24.21162017]
[1748820482046,14.13162017,157.24,157.19,30.57334801]
[1748820482349,148.9,157.23,157.19,30.57334801]
[1748820482636,163.03162017,157.23,157.19,16.44172784]
[1748820483029,148.9,157.23,157.19,30.57334801]
[1748820483339,148.9,157.23,157.2,14.13162017]
[1748820483944,148.9,157.23,157.21,20.49253868]
[1748820484554,148.9,157.23,157.22,14.13162017]
[1748820485128,148.9,157.23,157.22,20.49213409]
[1748820486556,148.9,157.23,157.22,6.36051392]
[1748820487023,148.9,157.23,157.2,20.49294332]
[1748820487224,148.9,157.23,157.2,6.36132315]
[1748820488739,163.03162017,157.23,157.2,6.36132315]
[1748820490837,148.9,157.23,157.2,6.36132315]
[1748820491340,163.03162017,157.23,157.2,6.36132315]
[1748820491940,148.9,157.23,157.2,6.36132315]
[1748820492847,163.03162017,157.23,157.2,6.36132315]
[1748820493051,163.03162017,157.23,157.19,16.44165958]
[1748820493221,14.13162017,157.2,157.17,6.36253737]
[1748820493645,14.13162017,157.21,157.17,6.36253737]
[1748820493845,163.03162017,157.22,157.17,20.49415754]
[1748820494244,148.9,157.22,157.18,14.13162017]
[1748820494545,148.9,157.22,157.19,14.13162017]
[1748820494745,148.9,157.22,157.2,14.13162017]
[1748820495051,148.9,157.22,157.21,6.36091851]
[1748820495237,148.9,157.22,157.21,20.49253868]
[1748820496326,148.9,157.22,157.2,14.13162017]
[1748820496743,148.9,157.22,157.19,20.49334801]
[1748820498232,148.9,157.22,157.21,6.36091851]
[1748820500246,148.9,157.26,157.21,6.36091851]
[1748820500427,148.9,157.26,157.22,14.13162017]
[1748820500843,148.9,157.26,157.23,14.13162017]
[1748820502442,148.9,157.26,157.24,6.3597049]
[1748820503640,148.9,157.26,157.25,14.13162017]
[1748820503837,209.75503143,157.3,157.25,14.13162017]
[1748820504451,209.75503143,157.3,157.26,6.35889609]
[1748820504653,14.13162017,157.27,157.19,14.13162017]
[1748820504860,14.13162017,157.24,157.19,53.03162017]
[1748820505238,14.13162017,157.24,157.19,14.13162017]
[1748820505459,14.13162017,157.23,157.18,46.47859032]
[1748820505756,14.13162017,157.23,157.18,16.44213258]
[1748820506057,14.13162017,157.23,157.18,30.57375275]
[1748820506832,163.03162017,157.22,157.18,16.44213258]
[1748820508854,163.03162017,157.22,157.17,6.36241122]
[1748820508855,14.13162017,157.21,157.17,6.36241122]
[1748820510458,148.9,157.2,157.17,6.36241122]
[1748820512027,163.03162017,157.2,157.17,6.36241122]
[1748820513441,148.9,157.2,157.17,14.13162017]
[1748820514658,148.9,157.2,157.18,6.36213258]
[1748820514842,148.9,157.2,157.18,20.49375275]
[1748820515837,148.9,157.2,157.18,6.36213258]
[1748820517042,148.9,157.2,157.17,6.36253737]
[1748820517463,148.9,157.2,157.17,20.49415754]
[1748820519949,148.9,157.2,157.17,6.36253737]
[1748820520861,163.03162017,157.2,157.17,6.36253737]
[1748820521765,148.9,157.2,157.16,14.13162017]
[1748820522966,148.9,157.2,157.17,6.36253737]
[1748820527763,148.9,157.2,157.17,20.49415754]
[1748820528168,148.9,157.2,157.17,6.36253737]
[1748820528745,148.9,157.2,157.17,20.49415754]
[1748820529068,148.9,157.2,157.18,14.13162017]
[1748820529270,148.9,157.2,157.19,6.36172784]
[1748820534751,148.9,157.2,157.18,6.36213258]
[1748820535983,163.03162017,157.2,157.18,6.36213258]
[1748820537167,163.03162017,157.2,157.16,6.36294222]
[1748820539874,148.9,157.2,157.16,20.49456239]
[1748820540076,148.9,157.19,157.16,20.49456239]
[1748820544460,148.9,157.19,157.16,36.40191795]
[1748820553275,148.9,157.19,157.16,22.27029778]
[1748820561272,158.01441002,157.19,157.16,22.27029778]
[1748820561473,148.9,157.19,157.16,22.27029778]
[1748820561673,148.9,157.19,157.16,6.36294222]
[1748820562372,158.01441002,157.19,157.16,6.36294222]
[1748820562766,148.9,157.19,157.16,6.36294222]
[1748820562973,158.01441002,157.19,157.16,6.36294222]
[1748820566200,158.01441002,157.19,157.15,6.36334712]
[1748820572370,9.11441002,157.17,157.14,6.36363569]
[1748820572573,9.11441002,157.16,157.13,16.42403545]
[1748820575302,9.11441002,157.17,157.13,16.42403545]
[1748820578280,158.01441002,157.18,157.13,16.42403545]
[1748820578485,148.9,157.17,157.13,16.42403545]
[1748820578699,158.01441002,157.17,157.13,6.36403545]
[1748820578906,9.11441002,157.16,157.13,6.36403545]
[1748820579688,9.11441002,157.16,157.11,9.82906577]
[1748820580000,9.11441002,157.14,157.11,7.07952409]
[1748820581813,9.11441002,157.13,157.11,7.07952409]
[1748820582403,9.11441002,157.14,157.11,7.07952409]
[1748820583522,9.11441002,157.13,157.11,7.07952409]
[1748820584803,9.11441002,157.14,157.11,7.07952409]
[1748820586323,9.11441002,157.15,157.11,7.07952409]
[1748820587119,158.01441002,157.16,157.11,7.07952409]
[1748820587317,26.0,157.17,157.11,7.07952409]
[1748820587318,158.01441002,157.15,157.11,7.07952409]
[1748820588236,9.11441002,157.14,157.11,0.71465575]
[1748820588531,9.11441002,157.13,157.11,0.71465575]
[1748820593331,148.9,157.12,157.11,0.71465575]
[1748820594133,148.9,157.12,157.11,7.07962297]
[1748820595619,148.9,157.12,157.11,0.71465575]
[1748820596836,158.01441002,157.12,157.11,0.71465575]
[1748820597345,148.9,157.12,157.11,7.07962297]
[1748820597555,148.70832856,157.12,157.11,7.07962297]
[1748820602742,148.70832856,157.12,157.11,0.71465575]
[1748820602920,157.82273858,157.12,157.11,0.71465575]
[1748820604345,84.4520501,157.12,157.11,0.71465575]
[1748820604551,90.81661221,157.12,157.05,6.36739891]
[1748820604842,9.11441002,157.08,157.05,6.36739891]
[1748820605535,9.11441002,157.07,157.05,6.36739891]
[1748820606119,9.11441002,157.07,157.02,15.92081985]
[1748820606323,9.11441002,157.05,157.03,6.3678178]
[1748820606632,9.11441002,157.05,157.02,6.36861546]
[1748820606835,9.11441002,157.06,157.02,6.36861546]
[1748820607234,14.26861825,157.06,157.02,6.36861546]
[1748820607447,163.16861825,157.05,157.02,6.36861546]
[1748820608531,148.9,157.05,157.02,20.63723371]
[1748820610158,148.9,157.05,157.02,6.36861546]
[1748820610728,148.9,157.05,157.02,20.63723371]
[1748820613548,148.9,157.05,157.02,6.36861546]
[1748820613549,163.16861825,157.05,157.02,6.36861546]
[1748820613750,148.9,157.05,157.02,20.63723371]
[1748820614354,148.9,157.05,157.02,36.55877236]
[1748820614855,148.9,157.05,157.03,14.26861825]
[1748820615532,148.9,157.05,157.04,6.36780438]
[1748820616129,148.9,157.05,157.04,20.63642263]
[1748820616552,148.9,157.05,157.04,6.36780438]
[1748820616759,148.9,157.05,157.04,20.63642263]
[1748820616938,148.9,157.05,157.04,6.36780438]
[1748820617141,148.9,157.05,157.04,20.63642263]
[1748820617534,148.9,157.05,157.04,6.36780438]
[1748820624051,148.9,157.05,157.04,20.63642263]
[1748820624449,148.9,157.05,157.04,59.51642263]
[1748820625166,163.16861825,157.11,157.04,75.43593358]
[1748820625372,148.9,157.1,157.06,14.26861825]
[1748820626050,148.9,157.1,157.07,6.36658814]
[1748820626968,163.16861825,157.1,157.07,6.36658814]
[1748820627143,14.26861825,157.09,157.07,6.36658814]
[1748820627344,14.26861825,157.08,157.04,6.36780438]
[1748820627746,14.26861825,157.07,157.04,6.36780438]
[1748820627963,14.26861825,157.05,157.02,6.36861546]
[1748820629548,163.16861825,157.06,157.02,6.36861546]
[1748820630964,14.26861825,157.05,157.02,6.36861546]
[1748820631650,148.9,157.04,157.02,6.36861546]
[1748820632283,163.16861825,157.04,157.01,7.23203437]
[1748820634085,148.9,157.04,157.01,7.23203437]
[1748820635082,163.16861825,157.04,157.01,7.23203437]
[1748820635880,148.9,157.03,157.01,7.23203437]
[1748820636094,148.9,157.02,157.01,7.23203437]
[1748820636270,163.16861825,157.02,157.01,0.8631147]
[1748820640561,14.26861825,157.02,157.01,0.8631147]
[1748820642798,1.5456,157.08,157.01,15.13173295]
[1748820643083,1.5456,157.08,157.03,14.26861825]
[1748820643470,15.81421825,157.08,157.03,20.63655121]
[1748820645190,14.26861825,157.06,157.02,6.36861546]
[1748820645395,14.26861825,157.07,157.02,20.63723371]
[1748820645788,1.5456,157.08,157.03,14.26861825]
[1748820645966,59.27759778,157.12,157.04,14.26861825]
[1748820646172,14.26861825,157.09,157.04,14.26861825]
[1748820647187,14.26861825,157.09,157.05,6.36739891]
[1748820647502,14.26861825,157.06,157.02,6.36861546]
[1748820647799,14.26861825,157.03,157.01,0.8631147]
[1748820647974,14.26861825,157.03,157.01,7.23206232]
[1748820649768,14.26861825,157.03,157.01,0.8631147]
[1748820656295,148.9,157.05,157.01,7.23202839]
[1748820656499,14.26861825,157.04,157.01,7.23202839]
[1748820658401,148.9,157.03,157.01,7.23202839]
[1748820660205,148.9,157.03,157.01,21.50064664]
[1748820660507,148.9,157.03,157.01,7.23202839]
[1748820660892,148.9,157.03,157.01,21.50064664]
[1748820665090,148.9,157.03,157.01,7.23202839]
[1748820665296,148.9,157.03,157.01,21.50064664]
[1748820672621,148.9,157.03,157.01,7.23202839]
[1748820675029,148.9,157.03,157.01,21.50064664]
[1748820678230,148.9,157.03,157.01,7.23202839]
[1748820682128,148.9,157.03,157.01,21.50064664]
[1748820684938,148.9,157.03,157.01,7.23202839]
[1748820687320,148.9,157.03,157.01,16.36565521]
[1748820687916,148.9,157.03,157.01,7.23202839]
[1748820690718,148.9,157.03,157.02,14.27129109]
[1748820690913,14.27129109,157.09,157.02,20.63990655]
[1748820691116,14.27129109,157.09,157.03,14.27129109]
[1748820691316,39.44,157.1,157.03,14.27129109]
[1748820691317,14.27129109,157.08,157.03,14.27129109]
[1748820692441,14.27129109,157.08,157.04,6.36780438]
[1748820692821,14.27129109,157.09,157.04,20.63909547]
[1748820694718,14.27129109,157.09,157.04,6.36780438]
[1748820694919,14.27129109,157.08,157.04,6.36780438]
[1748820695121,14.27129109,157.09,157.04,20.63909547]
[1748820695876,14.27129109,157.09,157.04,30.19080204]
[1748820696847,14.27129109,157.09,157.04,36.55860642]
[1748820697019,148.9,157.08,157.04,36.55860642]
[1748820698245,148.9,157.08,157.05,14.27129109]
[1748820698823,148.9,157.08,157.06,6.3669935]
[1748820702859,148.9,157.07,157.06,6.3669935]
[1748820708054,148.9,157.07,157.04,32.36780438]
[1748820708635,148.9,157.07,157.04,46.63909547]
[1748820708854,148.9,157.06,157.04,46.63909547]
[1748820709360,148.9,157.06,157.04,20.63909547]
[1748820709855,148.9,157.06,157.03,20.63950098]
[1748820711235,148.9,157.06,157.03,15.4988435]
[1748820713536,148.9,157.06,157.03,6.36820989]